bitfinex/quotes_BTCUSD_20251215
["timestamp","ask_amount","ask_price","bid_price","bid_amount"]
[1765814596613,0.22970551,87068.0,87064.0,0.22971607]
[1765814596823,0.24118888,87069.0,87065.0,0.09752567]
[1765814597021,0.0002,87084.0,87074.0,0.24117204]
[1765814597022,0.22967789,87079.0,87074.0,0.24117204]
[1765814597226,0.22967789,87079.0,87066.0,0.02297107]
[1765814597227,0.22968507,87076.0,87071.0,0.01148488]
[1765814597431,0.01148395,87078.0,87073.0,0.01148461]
[1765814597634,0.01148395,87078.0,87072.0,0.04890286]
[1765814597635,0.24115039,87083.0,87078.0,0.01148395]
[1765814597837,0.0002,87084.0,87083.0,0.08221]
[1765814598041,0.0002,87084.0,87083.0,0.15154287]
[1765814598265,0.0002,87084.0,87076.0,0.03687]
[1765814598266,0.01148329,87083.0,87076.0,0.03687]
[1765814598488,0.01148342,87082.0,87077.0,0.05663885]
[1765814598751,0.01148356,87081.0,87078.0,0.01148395]
[1765814598888,0.01148369,87080.0,87077.0,0.01832]
[1765814599089,0.24115955,87080.0,87077.0,0.01832]
[1765814599518,0.22967885,87079.0,87077.0,0.01832]
[1765814599720,0.01148369,87080.0,87077.0,0.24799943]
[1765814599936,0.01148369,87080.0,87039.0,0.0114891]
[1765814599937,0.01148751,87051.0,87039.0,0.0114891]
[1765814600277,0.04646,87078.0,87024.0,0.01149108]
[1765814600278,0.01148976,87034.0,87024.0,0.01149108]
[1765814600509,0.01148976,87034.0,87022.0,0.08604]
[1765814600510,0.22981893,87026.0,87025.0,0.03687]
[1765814600714,0.01149227,87015.0,87012.0,0.06772]
[1765814600904,0.01149227,87015.0,87004.0,0.06772]
[1765814600905,0.0114924,87014.0,87004.0,0.06772]
[1765814601121,0.2413439,87013.0,87008.0,0.01149319]
[1765814601329,0.22982669,87023.0,87015.0,0.24133635]
[1765814601483,0.01149095,87025.0,87015.0,0.00161287]
[1765814601689,0.22983297,87020.0,87017.0,0.011492]
[1765814602044,0.24132189,87021.0,87017.0,0.2429443]
[1765814602254,0.01149147,87021.0,87018.0,0.0725626]
[1765814602456,0.22983339,87020.0,87018.0,0.0725626]
[1765814602659,0.24132387,87021.0,87017.0,0.23145243]
[1765814602777,0.01149108,87024.0,87017.0,0.23145243]
[1765814602778,0.01149108,87024.0,87020.0,0.01149161]
[1765814602988,0.01149055,87028.0,87020.0,0.00161287]
[1765814603188,0.22981901,87025.0,87021.0,0.22982958]
[1765814603390,0.01149055,87028.0,87021.0,0.22982958]
[1765814603391,0.01149055,87028.0,87023.0,0.01149121]
[1765814603608,0.01149015,87031.0,87028.0,0.01149055]
[1765814603804,0.24129458,87031.0,87028.0,0.01310342]
[1765814604050,0.22980817,87030.0,87028.0,0.00161287]
[1765814605077,0.01148976,87034.0,87028.0,0.00161287]
[1765814605082,0.01148751,87051.0,87047.0,0.01148804]
[1765814605285,0.49409,87070.0,87047.0,0.01148804]
[1765814605286,0.01148659,87058.0,87050.0,0.01148765]
[1765814605509,0.01148672,87057.0,87054.0,0.01148712]
[1765814605718,0.24123523,87053.0,87050.0,0.00161287]
[1765814605926,0.22974938,87052.0,87050.0,0.00161287]
[1765814606126,0.22974938,87052.0,87047.0,0.01832]
[1765814606127,0.22975829,87048.0,87047.0,0.01832]
[1765814606337,0.01148685,87056.0,87032.0,0.06772]
[1765814606338,0.24127029,87040.0,87033.0,0.01148989]
[1765814606544,0.01148791,87048.0,87043.0,0.01148857]
[1765814606762,0.0114887,87042.0,87039.0,0.01832]
[1765814606973,0.01148936,87037.0,87033.0,0.01310276]
[1765814607172,0.01148831,87045.0,87038.0,0.01148923]
[1765814607378,0.01148817,87046.0,87040.0,0.01148897]
[1765814607589,0.01148883,87041.0,87038.0,0.00161287]
[1765814607791,0.22978157,87040.0,87038.0,0.00161287]
[1765814607998,0.24126851,87041.0,87005.0,0.05031039]
[1765814607999,0.01149068,87027.0,87023.0,0.33906121]
[1765814608211,0.22981637,87026.0,87025.0,0.11050762]
[1765814608429,0.24130735,87027.0,87023.0,0.03687]
[1765814608645,0.22981735,87026.0,87020.0,0.01832]
[1765814608848,0.22982958,87021.0,87020.0,0.01832]
[1765814609057,0.22982958,87021.0,87011.0,0.01149279]
[1765814609058,0.24134498,87013.0,87010.0,0.01149293]
[1765814609327,0.49459518,87020.0,87007.0,0.24135941]
[1765814609647,0.01149174,87019.0,87015.0,0.24133568]
[1765814609799,0.01149174,87019.0,87016.0,0.04711837]
[1765814610000,0.24132844,87019.0,87016.0,0.04711837]
[1765814610205,0.22984014,87017.0,87016.0,0.04711837]
[1765814610404,0.22984014,87017.0,87010.0,0.24135056]
[1765814610405,0.24134152,87014.0,87010.0,0.24135056]
[1765814610612,0.01149266,87012.0,87009.0,0.24135379]
[1765814610830,0.0114924,87014.0,87011.0,0.01149279]
[1765814610999,0.0114924,87014.0,87010.0,0.24135098]
[1765814611353,0.0114924,87014.0,87007.0,0.01149332]
[1765814611354,0.2297641,87046.0,87038.0,0.01148923]
[1765814611502,1.0,87047.0,87037.0,0.24127606]
[1765814611770,0.01148844,87044.0,87039.0,0.0114891]
[1765814611970,0.01148699,87055.0,87044.0,0.01148844]
[1765814612183,0.06907,87064.0,87044.0,0.01148844]
[1765814612184,0.01148765,87050.0,87046.0,0.24125124]
[1765814612376,0.22975744,87049.0,87046.0,0.01148817]
[1765814612578,0.24124522,87049.0,87046.0,0.24125113]
[1765814612789,0.24124522,87049.0,87047.0,0.05233418]
[1765814613129,0.01148738,87052.0,87047.0,0.29358214]
[1765814613327,0.01148738,87052.0,87047.0,0.05233418]
[1765814613328,0.2297564,87049.0,87047.0,0.05233418]
[1765814613557,0.01148831,87045.0,87042.0,0.0114887]
[1765814613785,0.01148765,87050.0,87042.0,0.0114887]
[1765814613786,0.01148804,87047.0,87044.0,0.01148844]
[1765814613991,0.01148672,87057.0,87044.0,0.02458975]
[1765814614135,0.2297562,87049.0,87046.0,0.0351]
[1765814614302,0.2297562,87049.0,87045.0,0.01148831]
[1765814614501,0.2307562,87049.0,87045.0,0.01148831]
[1765814614712,0.22975989,87048.0,87046.0,0.02658545]
[1765814615330,0.22975989,87048.0,87038.0,0.01148923]
[1765814615331,0.01148817,87046.0,87038.0,0.01148923]
[1765814615529,0.23075709,87049.0,87047.0,0.0351]
[1765814615757,0.22976232,87047.0,87043.0,0.22976976]
[1765814615952,0.01148804,87047.0,87044.0,0.01148844]
[1765814616157,0.01148844,87044.0,87040.0,0.01148897]
[1765814616433,0.22975515,87050.0,87047.0,0.01148804]
[1765814616658,0.01148817,87046.0,87043.0,0.01148857]
[1765814616985,0.22976637,87045.0,87041.0,0.04956568]
[1765814617185,0.2297368,87057.0,87041.0,0.04956568]
[1765814617186,0.01148633,87060.0,87055.0,0.01148699]
[1765814617469,0.01148738,87052.0,87046.0,0.04696]
[1765814617701,0.01148672,87057.0,87053.0,0.01148725]
[1765814617917,0.22974773,87052.0,87047.0,0.02898389]
[1765814618091,0.01148765,87050.0,87047.0,0.02898389]
[1765814618323,0.01148765,87050.0,87048.0,0.22975817]
[1765814618496,0.25533066,87059.0,87047.0,0.04047193]
[1765814618497,0.24122142,87057.0,87054.0,0.01148712]
[1765814618704,0.22974243,87055.0,87051.0,0.22974963]
[1765814618926,0.22974243,87055.0,87052.0,0.02313625]
[1765814619064,0.22974509,87053.0,87052.0,0.02313625]
[1765814619296,0.01148765,87050.0,87046.0,0.00161287]
[1765814619502,0.24123966,87051.0,87048.0,0.24124568]
[1765814619705,0.22975301,87050.0,87048.0,0.01148791]
[1765814620073,0.22974816,87052.0,87050.0,0.01148765]
[1765814620274,0.01148738,87052.0,87049.0,0.24124139]
[1765814620476,0.24123745,87053.0,87050.0,0.27816288]
[1765814620682,0.24123745,87053.0,87050.0,0.28965053]
[1765814620891,0.001,87051.0,87050.0,0.28965067]
[1765814621538,0.14273889,87115.0,87055.0,0.24122652]
[1765814621539,0.01148633,87060.0,87055.0,0.24122652]
[1765814621758,0.01248725,87053.0,87050.0,0.12255287]
[1765814621965,0.01148831,87045.0,87041.0,0.24126354]
[1765814622172,0.01248725,87053.0,87041.0,0.24126354]
[1765814622173,0.001,87053.0,87048.0,0.01148791]
[1765814622389,0.001,87053.0,87052.0,0.22974773]
[1765814622606,0.001,87053.0,87052.0,0.64854797]
[1765814622818,0.001,87053.0,87052.0,0.77254636]
[1765814623002,0.001,87053.0,87052.0,0.88378639]
[1765814623238,0.01832,87082.0,87068.0,0.24118939]
[1765814623239,0.01148488,87071.0,87068.0,0.24118939]
[1765814623448,0.01148567,87065.0,87059.0,0.01148646]
[1765814623659,0.01148488,87071.0,87068.0,0.01148527]
[1765814623867,0.22968707,87075.0,87073.0,0.01148461]
[1765814624075,0.01148435,87075.0,87063.0,0.0351]
[1765814624252,0.2411771,87073.0,87066.0,0.24119623]
[1765814624500,0.22971591,87065.0,87063.0,0.00161287]
[1765814624710,0.22971591,87065.0,87056.0,0.0351]
[1765814624711,0.01148514,87069.0,87066.0,0.01148553]
[1765814624917,0.2297014,87070.0,87067.0,0.02641773]
[1765814625128,0.01148461,87073.0,87069.0,0.01148514]
[1765814625335,0.1966,87073.0,87067.0,0.0280306]
[1765814625548,0.1966,87073.0,87054.0,0.11124003]
[1765814625549,0.22971887,87063.0,87059.0,0.24121497]
[1765814625761,0.24119939,87065.0,87061.0,0.24121003]
[1765814625968,0.01148619,87061.0,87056.0,0.00161287]
[1765814626177,0.22972662,87060.0,87059.0,0.001]
[1765814626386,0.22973454,87057.0,87056.0,0.00161287]
[1765814626590,0.22973454,87057.0,87056.0,0.03497369]
[1765814627008,0.2297319,87058.0,87056.0,0.03497369]
[1765814627253,0.22973454,87057.0,87056.0,0.03497369]
[1765814627454,0.22973454,87057.0,87056.0,0.00161287]
[1765814628354,0.22973303,87058.0,87056.0,0.00161287]
[1765814628555,0.03077116,87081.0,87056.0,0.00161287]
[1765814628556,0.24119671,87066.0,87063.0,0.24120463]
[1765814628779,0.24119932,87065.0,87062.0,0.22971878]
[1765814629002,0.0114858,87064.0,87057.0,0.22973454]
[1765814629219,0.0114858,87064.0,87058.0,0.02313474]
[1765814629220,0.24121548,87060.0,87058.0,0.02313474]
[1765814629424,0.01148633,87060.0,87058.0,0.02313474]
[1765814629626,0.24120793,87062.0,87058.0,0.03462133]
[1765814629802,0.24120793,87062.0,87058.0,0.26435322]
[1765814630206,0.2412124,87061.0,87058.0,0.26435322]
[1765814630418,0.22972662,87060.0,87059.0,0.08338842]
[1765814630899,0.22972662,87060.0,87030.0,0.49559517]
[1765814630900,0.22977677,87041.0,87035.0,0.01148963]
[1765814631113,0.22977677,87041.0,87033.0,0.07398]
[1765814631114,0.01148963,87035.0,87029.0,0.04737042]
[1765814631322,0.04652,87041.0,87024.0,0.24131267]
[1765814631323,0.01149015,87031.0,87024.0,0.24131267]
[1765814631538,0.01149015,87031.0,87023.0,0.01832]
[1765814631539,0.2413085,87026.0,87025.0,0.06100304]
[1765814631782,0.2413085,87026.0,87021.0,0.24132065]
[1765814631783,0.24131119,87025.0,87021.0,0.24132065]
[1765814631988,0.01149081,87026.0,87023.0,0.2298238]
[1765814632202,0.24131854,87023.0,87020.0,0.03671287]
[1765814632415,0.01149121,87023.0,87013.0,0.01149253]
[1765814632625,0.24131625,87023.0,87019.0,0.01149174]
[1765814632803,0.01149121,87023.0,87020.0,0.22983163]
[1765814633034,0.24131646,87023.0,87021.0,0.04711684]
[1765814633260,0.24132598,87020.0,87017.0,0.011492]
[1765814633464,0.24131889,87022.0,87017.0,0.011492]
[1765814633667,0.01149161,87020.0,87017.0,0.24133139]
[1765814633879,0.01149161,87020.0,87017.0,0.011492]
[1765814634342,0.22984065,87017.0,87014.0,0.0114924]
[1765814634543,0.22984642,87015.0,87013.0,0.00161287]
[1765814634746,0.2298692,87006.0,87001.0,0.22988167]
[1765814634955,0.2298692,87006.0,87002.0,0.01149398]
[1765814635169,0.01149319,87008.0,87000.0,0.24137746]
[1765814635170,0.22986675,87007.0,87005.0,0.01344039]
[1765814635581,0.24136639,87005.0,87001.0,0.01149412]
[1765814635785,0.22988126,87002.0,86999.0,0.01149438]
[1765814636007,0.01149319,87008.0,86962.0,0.34497597]
[1765814636008,0.22989692,86996.0,86962.0,0.34497597]
[1765814636268,0.01149557,86990.0,86983.0,0.0351]
[1765814636526,0.22992673,86985.0,86983.0,0.0351]
[1765814636716,0.01149557,86990.0,86984.0,0.03225273]
[1765814636937,0.2299232,86986.0,86984.0,0.03225273]
[1765814637406,0.22992734,86984.0,86983.0,0.00161287]
[1765814637829,0.01149782,86973.0,86969.0,0.0351]
[1765814638003,0.2299575,86973.0,86969.0,0.0351]
[1765814638205,0.01149782,86973.0,86969.0,0.0351]
[1765814638530,0.22996238,86971.0,86970.0,0.06271281]
[1765814639802,0.22996238,86971.0,86970.0,0.06471281]
[1765814640168,0.27648238,86971.0,86970.0,0.002]
[1765814640428,1.34618238,86971.0,86970.0,0.002]
[1765814640862,1.34618238,86971.0,86970.0,0.005]
[1765814640863,1.48597866,86971.0,86970.0,0.005]
[1765814641073,1.51674982,86971.0,86970.0,0.005]
[1765814641265,1.51674982,86971.0,86954.0,0.0004]
[1765814641267,0.52070402,86955.0,86954.0,0.0004]
[1765814641474,1.58554402,86955.0,86954.0,0.0004]
[1765814641676,1.68438362,86955.0,86954.0,0.0004]
[1765814641888,1.66606362,86955.0,86954.0,0.0004]
[1765814642160,1.61330362,86955.0,86954.0,0.0004]
[1765814642366,1.64470402,86955.0,86954.0,0.0004]
[1765814642571,0.24150125,86957.0,86954.0,0.0004]
[1765814642746,0.005,86955.0,86954.0,0.0004]
[1765814643191,0.23000402,86955.0,86954.0,0.0004]
[1765814643398,1.0,86955.0,86954.0,0.0004]
[1765814643608,0.01149954,86960.0,86954.0,0.0004]
[1765814643609,0.001,86971.0,86968.0,0.01149848]
[1765814643809,0.001,86971.0,86964.0,0.01149901]
[1765814643810,0.01149834,86969.0,86966.0,0.01149874]
[1765814644034,0.01149821,86970.0,86966.0,0.01149874]
[1765814644035,0.22994416,86978.0,86972.0,0.22995834]
[1765814644221,0.01149755,86975.0,86972.0,0.01149795]
[1765814644427,0.01744,86979.0,86975.0,0.22995113]
[1765814644635,0.05757284,86980.0,86978.0,0.2299432]
[1765814644840,0.05757284,86980.0,86978.0,0.23155607]
[1765814645049,0.05757284,86980.0,86979.0,0.14717692]
[1765814645256,0.05757284,86980.0,86979.0,0.02460692]
[1765814645461,0.05757284,86980.0,86979.0,0.00161287]
[1765814645842,0.05757284,86980.0,86979.0,0.23155343]
[1765814646060,0.05757284,86980.0,86979.0,0.00161287]
[1765814646308,0.01149716,86978.0,86973.0,0.01149782]
[1765814646524,0.01149716,86978.0,86972.0,0.01149795]
[1765814646525,0.01149755,86975.0,86972.0,0.01149795]
[1765814646738,0.01149755,86975.0,86963.0,0.01993287]
[1765814646739,0.22998022,86964.0,86963.0,0.00161287]
[1765814647304,0.02152,86965.0,86963.0,0.00161287]
[1765814647305,0.22998004,86965.0,86963.0,0.00161287]
[1765814647687,0.01149901,86964.0,86956.0,0.01150006]
[1765814647882,0.02152,86970.0,86956.0,0.01150006]
[1765814647883,0.05857284,86980.0,86968.0,0.01149848]
[1765814648152,0.05757284,86980.0,86977.0,0.01149729]
[1765814648357,0.12714404,86986.0,86979.0,0.01310989]
[1765814648555,0.01149597,86987.0,86984.0,0.01149636]
[1765814648758,0.22990355,86993.0,86985.0,0.01149623]
[1765814648958,0.22990355,86993.0,86985.0,0.0131091]
[1765814648959,0.22991045,86991.0,86985.0,0.0131091]
[1765814649108,0.22992108,86987.0,86986.0,0.02660353]
[1765814649294,0.24141467,86988.0,86986.0,0.02660353]
[1765814649535,0.46239557,86990.0,86986.0,0.02660353]
[1765814649738,0.24141226,86989.0,86986.0,0.02660353]
[1765814649939,0.5128,86990.0,86987.0,0.01149597]
[1765814650147,0.5136,86991.0,86989.0,0.22991223]
[1765814650359,0.24138166,87000.0,86994.0,0.22990091]
[1765814650550,0.05740367,87009.0,87005.0,0.01149359]
[1765814650751,0.09988,87018.0,87008.0,0.01149319]
[1765814650752,0.01149266,87012.0,87008.0,0.01149319]
[1765814650979,0.99174993,87014.0,87006.0,0.24136002]
[1765814650980,0.22984993,87014.0,87009.0,0.03923841]
[1765814651301,0.22982036,87025.0,87019.0,0.01149174]
[1765814651499,0.06906365,87026.0,87019.0,0.01149174]
[1765814651500,0.01149161,87020.0,87019.0,0.00161287]
[1765814651713,0.02439795,87029.0,87024.0,0.01149108]
[1765814651928,0.01149081,87026.0,87019.0,0.00161287]
[1765814652124,0.22982958,87021.0,87019.0,0.00161287]
[1765814652337,0.01149147,87021.0,87016.0,0.01149213]
[1765814652507,0.01149161,87020.0,87016.0,0.01149213]
[1765814652716,0.01149161,87020.0,87015.0,0.22984448]
[1765814652717,0.2298375,87018.0,87017.0,0.04711835]
[1765814652928,0.01149425,87000.0,86988.0,0.31996253]
[1765814653295,0.01149491,86995.0,86990.0,0.01836]
[1765814653470,0.01149517,86993.0,86990.0,0.02985557]
[1765814653628,0.01149504,86994.0,86991.0,0.0295881]
[1765814653836,0.22990518,86993.0,86991.0,0.0295881]
[1765814654193,0.24139874,86994.0,86991.0,0.0295881]
[1765814654393,0.01149491,86995.0,86992.0,0.0114953]
[1765814654700,0.24139392,86995.0,86993.0,0.03947693]
[1765814654982,0.22989827,86995.0,86993.0,0.03439129]
[1765814655185,0.22989827,86995.0,86994.0,0.00505406]
[1765814655547,0.01149438,86999.0,86994.0,0.00505406]
[1765814655548,0.01149293,87010.0,86994.0,0.00666693]
[1765814655726,0.03069162,87019.0,87011.0,0.01149279]
[1765814655727,0.03584642,87019.0,87011.0,0.01149279]
[1765814655934,0.76762853,87030.0,87011.0,0.01149279]
[1765814655935,0.03069162,87026.0,87023.0,0.01149121]
[1765814656220,0.0358451,87029.0,87028.0,0.22981109]
[1765814656221,0.02435468,87029.0,87028.0,0.22981109]
[1765814656356,0.01149042,87029.0,87025.0,0.01149095]
[1765814656554,0.01058678,87032.0,87019.0,0.24132582]
[1765814656777,0.01149134,87022.0,87018.0,0.01149187]
[1765814656966,0.01149134,87022.0,87019.0,0.05566449]
[1765814657220,0.01149029,87030.0,87025.0,0.01149095]
[1765814657428,0.2907,87039.0,87030.0,0.01149029]
[1765814657429,0.26048227,87036.0,87030.0,0.01149029]
[1765814657794,0.03708897,87040.0,87030.0,0.01149029]
[1765814657795,0.04128558,87035.0,87033.0,0.24128603]
[1765814657937,0.03069162,87036.0,87035.0,0.22979261]
[1765814658129,0.27197124,87037.0,87034.0,0.07468556]
[1765814658333,0.05242086,87043.0,87022.0,0.01149134]
[1765814658334,0.24130807,87026.0,87022.0,0.01149134]
[1765814658745,0.03056063,87029.0,87026.0,0.01149081]
[1765814659106,0.01149081,87026.0,87022.0,0.24131592]
[1765814659227,0.03056063,87027.0,87023.0,0.24131498]
[1765814659423,0.03056063,87027.0,87025.0,0.22981862]
[1765814659628,0.03056063,87028.0,87027.0,0.22981373]
[1765814659830,0.06117381,87037.0,87027.0,0.22981373]
[1765814659831,0.03056063,87029.0,87027.0,0.2314266]
[1765814660050,0.04293229,87029.0,87027.0,0.2314266]
[1765814660257,0.04283016,87029.0,87028.0,0.25106288]
[1765814660462,0.002,87029.0,87028.0,0.25267575]
[1765814660660,0.04083726,87032.0,87031.0,0.22980317]
[1765814661028,0.06533535,87033.0,87031.0,0.23141604]
[1765814661235,0.06117381,87038.0,87031.0,0.23141604]
[1765814661236,0.02449809,87037.0,87034.0,0.22979525]
[1765814661440,0.22978037,87040.0,87036.0,0.22978912]
[1765814661441,0.06117381,87040.0,87036.0,0.22978912]
[1765814661649,0.06117381,87041.0,87039.0,0.22978205]
[1765814661853,0.03516031,87040.0,87039.0,0.22978205]
[1765814662094,0.04087332,87042.0,87041.0,0.22977677]
[1765814662297,0.05151737,87046.0,87044.0,0.24125729]
[1765814662497,0.04087332,87046.0,87045.0,0.22976621]
[1765814662634,0.04087332,87046.0,87045.0,0.35394908]
[1765814663244,0.01064301,87049.0,87046.0,0.24124915]
[1765814663521,0.07181682,87049.0,87048.0,0.27834829]
[1765814663731,0.08156508,87061.0,87048.0,0.27834829]
[1765814663732,0.00761869,87069.0,87057.0,0.24122049]
[1765814663929,0.24121909,87058.0,87055.0,0.03682]
[1765814664136,0.00761869,87069.0,87055.0,0.03682]
[1765814664352,0.04090478,87060.0,87058.0,0.2297319]
[1765814664561,0.04090478,87060.0,87054.0,0.22974103]
[1765814664562,0.22975829,87048.0,87037.0,0.04830936]
[1765814664755,0.22976357,87046.0,87041.0,0.004]
[1765814664961,0.01148791,87048.0,87044.0,0.22976818]
[1765814665093,0.2297623,87047.0,87043.0,0.01832]
[1765814665974,0.22976885,87044.0,87043.0,0.01832]
[1765814666184,0.22976885,87044.0,87043.0,0.07438651]
[1765814666802,0.01148936,87037.0,87029.0,0.01149042]
[1765814667003,0.22976924,87044.0,87033.0,0.03682]
[1765814667273,0.22977742,87041.0,87037.0,0.22978609]
[1765814667451,0.16610327,87075.0,87050.0,0.01148765]
[1765814667652,0.01148567,87065.0,87059.0,0.01148646]
[1765814667855,0.01148527,87068.0,87064.0,0.0114858]
[1765814668056,0.24119129,87068.0,87065.0,0.2297127]
[1765814668261,0.24119129,87068.0,87066.0,0.05023373]
[1765814668500,0.1152,87081.0,87066.0,0.05023373]
[1765814668501,0.24117332,87075.0,87071.0,0.24118147]
[1765814668706,0.24117332,87075.0,87070.0,0.01148501]
[1765814668707,0.01148356,87081.0,87074.0,0.01148448]
[1765814668907,0.22986551,87084.0,87077.0,0.24116585]
[1765814668908,0.22967481,87080.0,87077.0,0.24116585]
[1765814669250,0.22986551,87084.0,87081.0,0.01148356]
[1765814669251,0.0002,87084.0,87081.0,0.01148356]
[1765814669426,0.0002,87084.0,87079.0,0.01148382]
[1765814669626,0.01148342,87082.0,87081.0,0.01832]
[1765814670262,0.01148342,87082.0,87068.0,0.24118838]
[1765814670263,0.22970551,87068.0,87066.0,0.05023373]
[1765814670465,0.01148606,87062.0,87059.0,0.01148646]
[1765814670591,0.2411988,87066.0,87060.0,0.02980633]
[1765814670592,0.24120116,87065.0,87060.0,0.02980633]
[1765814670797,0.72669624,87080.0,87065.0,0.04724]
[1765814670798,0.01148448,87074.0,87065.0,0.04724]
[1765814670996,0.22970584,87068.0,87066.0,0.02297107]
[1765814671265,0.01148474,87072.0,87060.0,0.07417287]
[1765814671266,0.01148474,87072.0,87068.0,0.01148527]
[1765814671418,0.22968787,87075.0,87071.0,0.04724]
[1765814671597,0.01148448,87074.0,87071.0,0.05872488]
[1765814671800,0.22969263,87073.0,87071.0,0.04724]
[1765814672022,0.01148408,87077.0,87072.0,0.24117813]
[1765814672258,0.01148382,87079.0,87072.0,0.24117813]
[1765814672259,0.01148382,87079.0,87076.0,0.01148422]
[1765814672459,0.1152,87094.0,87076.0,0.01148422]
[1765814672460,0.02070747,87087.0,87083.0,0.22966595]
[1765814672658,0.0092247,87087.0,87083.0,0.22966595]
[1765814672865,0.01148303,87085.0,87081.0,0.24115442]
[1765814673050,0.01148303,87085.0,87079.0,0.02980382]
[1765814673051,0.01148342,87082.0,87079.0,0.01832]
[1765814673253,0.22967386,87080.0,87079.0,0.01832]
[1765814673567,0.22967386,87080.0,87076.0,0.00161287]
[1765814673568,0.22968177,87077.0,87076.0,0.00161287]
[1765814673790,0.22968177,87077.0,87076.0,0.01993287]
[1765814673998,0.22968177,87077.0,87076.0,0.00161287]
[1765814674197,0.22968177,87077.0,87076.0,0.01993287]
[1765814674476,0.22968177,87077.0,87076.0,0.06947904]
[1765814674682,0.22968177,87077.0,87076.0,0.06786617]
[1765814674896,0.01148474,87072.0,87068.0,0.01148527]
[1765814675062,0.01148408,87077.0,87072.0,0.22969316]
[1765814675235,0.01148461,87073.0,87072.0,0.07438]
[1765814675588,0.01148395,87078.0,87072.0,0.25290807]
[1765814675794,0.22969232,87073.0,87072.0,0.01172837]
[1765814676822,0.24216585,87077.0,87057.0,0.01148672]
[1765814676823,0.01148567,87065.0,87057.0,0.01148672]
[1765814676999,0.24119916,87065.0,87062.0,0.22971976]
[1765814677266,0.24119916,87065.0,87059.0,0.01148646]
[1765814677267,0.01148567,87065.0,87059.0,0.01148646]
[1765814677502,0.2412016,87065.0,87062.0,0.24120628]
[1765814677737,0.01148567,87065.0,87062.0,0.01148606]
[1765814677978,0.01148593,87063.0,87060.0,0.03905496]
[1765814678193,0.01148593,87063.0,87060.0,0.28026538]
[1765814678423,0.01148593,87063.0,87061.0,0.30547024]
[1765814678659,0.01148593,87063.0,87061.0,0.07574648]
[1765814678901,0.22972134,87062.0,87061.0,0.05742648]
[1765814679141,0.24119183,87068.0,87061.0,0.05742648]
[1765814679142,0.01148382,87079.0,87074.0,0.22968959]
[1765814679345,0.03602789,87079.0,87073.0,0.01148461]
[1765814679524,0.22968757,87075.0,87073.0,0.01148461]
[1765814679770,0.01148448,87074.0,87071.0,0.24118216]
[1765814679994,0.22968757,87075.0,87074.0,0.01832]
[1765814679995,0.22968705,87075.0,87074.0,0.01832]
[1765814680399,0.01148567,87065.0,87052.0,0.12272741]
[1765814680533,0.01148567,87065.0,87061.0,0.01148619]
[1765814680744,0.01148514,87069.0,87061.0,0.07599287]
[1765814680954,0.2297187,87063.0,87062.0,0.04784759]
[1765814681158,0.24120206,87064.0,87061.0,0.00161287]
[1765814681363,0.0114858,87064.0,87061.0,0.00161287]
[1765814681571,0.0114858,87064.0,87061.0,0.2313368]
[1765814681765,0.22971607,87064.0,87063.0,0.04739]
[1765814681981,0.001,87065.0,87064.0,0.22971607]
[1765814682182,0.001,87065.0,87064.0,0.38909319]
[1765814682384,0.001,87065.0,87064.0,0.44072445]
[1765814682584,0.001,87065.0,87064.0,0.73142445]
[1765814682903,0.001,87065.0,87064.0,0.84266448]
[1765814683350,0.22964485,87091.0,87064.0,0.84266448]
[1765814683351,0.22965047,87089.0,87084.0,0.01148316]
[1765814683552,0.15610502,87103.0,87084.0,0.01148316]
[1765814683553,0.02455124,87106.0,87099.0,0.22962376]
[1765814683744,0.01065912,87108.0,87099.0,0.40545663]
[1765814683943,0.24109765,87102.0,87099.0,0.10145287]
[1765814684148,0.02455124,87110.0,87099.0,0.17583287]
[1765814684367,0.0002,87111.0,87110.0,0.22959476]
[1765814684570,0.0002,87111.0,87110.0,0.24791476]
[1765814684733,0.0002,87111.0,87110.0,0.01832]
[1765814685791,0.0002,87111.0,87110.0,0.24791476]
[1765814685913,0.0002,87111.0,87110.0,0.01832]
[1765814686134,0.0002,87111.0,87110.0,0.07066558]
[1765814686348,0.01085738,87111.0,87110.0,0.01832]
[1765814686966,0.01147987,87109.0,87105.0,0.01148039]
[1765814687183,0.01147987,87109.0,87106.0,0.01832]
[1765814687184,0.01148,87108.0,87106.0,0.01832]
[1765814687586,0.24108075,87108.0,87106.0,0.01832]
[1765814687796,0.01064262,87107.0,87106.0,0.01832]
[1765814688224,0.24108628,87106.0,87102.0,0.01832]
[1765814688438,0.22960931,87105.0,87103.0,0.05251052]
[1765814688660,0.01148,87108.0,87104.0,0.01148052]
[1765814688875,0.01064735,87108.0,87106.0,0.01148026]
[1765814689087,0.22960137,87108.0,87104.0,0.01148052]
[1765814689296,0.01064735,87107.0,87104.0,0.24109025]
[1765814689527,0.01064735,87107.0,87105.0,0.31374057]
[1765814689758,0.22960363,87107.0,87105.0,0.0841341]
[1765814690010,0.01064735,87106.0,87105.0,0.0841341]
[1765814690220,0.01064735,87106.0,87104.0,0.2296095]
[1765814690441,0.01148013,87107.0,87103.0,0.05251052]
[1765814690654,0.01148026,87106.0,87103.0,0.05251052]
[1765814690855,0.01147973,87110.0,87106.0,0.01148026]
[1765814691061,0.01147973,87110.0,87104.0,0.07438]
[1765814691062,0.01147973,87110.0,87105.0,0.01148039]
[1765814691292,0.01147987,87109.0,87106.0,0.03468791]
[1765814691500,0.22979386,87111.0,87106.0,0.03468791]
[1765814691501,0.001,87108.0,87106.0,0.24133166]
[1765814691876,0.0002,87111.0,87109.0,0.22959688]
[1765814692131,0.01147987,87109.0,87106.0,0.01172738]
[1765814692358,0.0002,87111.0,87106.0,0.01172738]
[1765814692359,0.001,87110.0,87109.0,0.22959713]
[1765814692656,0.001,87110.0,87109.0,0.32101295]
[1765814692874,0.001,87110.0,87109.0,0.49280134]
[1765814693325,0.001,87110.0,87109.0,0.32101295]
[1765814693545,0.001,87110.0,87109.0,0.46110295]
[1765814693969,0.001,87110.0,87109.0,0.62236137]
[1765814694173,0.0002,87111.0,87110.0,0.16125842]
[1765814694376,0.0002,87111.0,87110.0,0.30686835]
[1765814694585,0.01068116,87125.0,87123.0,0.2410364]
[1765814695026,0.24102676,87128.0,87123.0,0.2410364]
[1765814695262,0.22955076,87127.0,87123.0,0.2410364]
[1765814695478,0.24102825,87127.0,87123.0,0.2410364]
[1765814695676,0.24102825,87127.0,87124.0,0.05460141]
[1765814696212,0.2295526,87126.0,87124.0,0.05460141]
[1765814696622,0.22955443,87126.0,87124.0,0.05460141]
[1765814696850,0.2295605,87123.0,87122.0,0.01832]
[1765814697050,0.24105368,87118.0,87114.0,0.24106213]
[1765814697250,0.24105297,87118.0,87117.0,0.01832]
[1765814697941,0.24105297,87118.0,87110.0,0.00161287]
[1765814697942,0.22959212,87111.0,87110.0,0.00161287]
[1765814698154,0.22960267,87107.0,87106.0,0.01832]
[1765814698345,0.22959525,87110.0,87107.0,0.22960141]
[1765814698485,0.22959525,87110.0,87106.0,0.01832]